bitfinex/quotes_SOLUSD_20250517
["timestamp","ask_amount","ask_price","bid_price","bid_amount"]
[1747509925488,18.64964886,166.27,166.2,6.01684717]
[1747509925693,19.84896071,166.27,166.2,6.01684717]
[1747509928776,25.86330949,166.27,166.2,6.01684717]
[1747509929295,25.86330949,166.27,166.2,51.51684717]
[1747509943196,40.89909465,166.27,166.19,1.6584]
[1747509943403,18.64964886,166.25,166.19,7.67549299]
[1747509943574,19.84896071,166.25,166.19,7.67549299]
[1747509945404,25.86429733,166.25,166.19,7.67549299]
[1747509947399,25.86429733,166.25,166.17,32.01781217]
[1747509947597,25.86429733,166.25,166.17,77.51781217]
[1747509948171,25.86429733,166.25,166.17,77.01781217]
[1747509951601,40.90189131,166.25,166.17,71.0]
[1747509951777,40.90189131,166.25,166.17,77.01789106]
[1747509952198,40.90189131,166.25,166.17,71.0]
[1747509953407,40.90189131,166.25,166.17,25.5]
[1747509953899,40.90189131,166.25,166.17,31.51786508]
[1747509954309,25.86429733,166.25,166.17,31.51786508]
[1747509955375,25.86429733,166.25,166.17,25.5]
[1747509955800,40.90189131,166.25,166.17,25.5]
[1747509956307,26.0,166.24,166.13,11.8480281]
[1747509956605,19.84896071,166.23,166.13,11.8480281]
[1747509957202,19.84896071,166.23,166.13,7.53912014]
[1747509957707,18.64964886,166.21,166.13,7.53912014]
[1747509957908,18.64964886,166.19,166.13,7.53912014]
[1747509958998,24.66710535,166.19,166.13,7.53912014]
[1747509960719,18.64964886,166.19,166.13,7.53912014]
[1747509961618,24.6669715,166.19,166.13,7.53912014]
[1747509962286,24.6669715,166.19,166.13,53.03912014]
[1747509964393,18.64964886,166.19,166.13,53.03912014]
[1747509965217,24.66695255,166.19,166.13,53.03912014]
[1747509966713,24.66695255,166.19,166.13,47.02]
[1747509966894,18.64964886,166.17,166.13,1.52]
[1747509969518,24.66760776,166.17,166.13,1.52]
[1747509969813,24.66734164,166.18,166.13,7.53927587]
[1747509970202,24.66734164,166.18,166.13,1.52]
[1747509971619,24.66734164,166.18,166.13,7.53934054]
[1747509972329,24.66734164,166.18,166.13,1.52]
[1747509975322,18.64964886,166.18,166.13,7.53919346]
[1747509975511,18.64964886,166.19,166.13,7.53919346]
[1747509976115,24.66690755,166.19,166.13,7.53919346]
[1747509978021,1.19931185,166.18,166.11,45.5]
[1747509979449,18.64964886,166.16,166.11,45.5]
[1747509979732,18.64964886,166.14,166.08,7.64095245]
[1747509980632,19.84896071,166.16,166.08,7.64095245]
[1747509981439,25.86737395,166.16,166.08,7.64095245]
[1747509983314,25.86737395,166.16,166.08,53.14095245]
[1747509986045,40.91311299,166.16,166.08,47.1199]
[1747509986433,40.91311299,166.16,166.08,1.6199]
[1747509987812,40.91311299,166.16,166.08,7.6410818]
[1747509988312,40.91311299,166.16,166.08,1.6199]
[1747509989312,40.91311299,166.16,166.08,7.64108329]
[1747509991335,40.91311299,166.16,166.07,77.52141486]
[1747509992338,40.91311299,166.16,166.07,32.02141486]
[1747509999443,40.91311299,166.16,166.07,26.0]
[1747510000553,40.91311299,166.16,166.07,32.02147284]
[1747510002750,59.81311299,166.16,166.07,32.02147284]
[1747510009750,18.64964886,166.12,166.04,7.52346877]
[1747510009932,18.64964886,166.1,166.04,7.52346877]
[1747510010430,1.19931185,166.09,166.04,1.5009]
[1747510010627,18.64964886,166.08,166.04,1.5009]
[1747510011333,18.64964886,166.06,166.02,45.5]
[1747510011536,18.64964886,166.09,166.0,57.34324013]
[1747510011753,18.64964886,166.06,166.0,83.34324013]
[1747510012938,24.67185747,166.06,166.0,83.34324013]
[1747510013256,24.67185747,166.06,166.0,79.03433217]
[1747510013762,24.67185747,166.06,166.0,73.0105]
[1747510014052,25.87116932,166.06,166.0,73.0105]
[1747510015567,25.87116932,166.06,166.0,79.03446083]
[1747510016349,25.87116932,166.06,166.0,33.53446083]
[1747510016528,25.87116932,166.06,166.0,27.5105]
[1747510018765,25.87116932,166.06,166.0,1.5105]
[1747510018949,18.64964886,166.04,166.0,1.5105]
[1747510019137,19.84896071,166.04,166.0,1.5105]
[1747510019460,18.64964886,166.04,166.0,7.53444375]
[1747510022133,25.87167385,166.04,165.98,38.41956738]
[1747510023158,18.64964886,166.04,165.98,38.41956738]
[1747510023362,18.64964886,166.04,165.98,53.48162304]
[1747510025271,18.64964886,166.04,165.98,98.98162304]
[1747510026580,18.64964886,166.08,166.01,26.0]
[1747510026750,18.64964886,166.08,166.01,71.5]
[1747510027668,18.64964886,166.06,166.01,45.5]
[1747510028051,18.64964886,166.06,166.01,51.5236096]
[1747510028573,18.64964886,166.06,166.01,45.5]
[1747510029073,18.64964886,166.06,166.01,51.52369097]
[1747510030283,24.67160793,166.06,166.01,51.52369097]
[1747510031298,24.67160793,166.06,166.0,6.02409638]
[1747510039193,18.64964886,166.04,165.99,77.52442944]
[1747510039364,18.64964886,166.04,165.99,26.0]
[1747510039803,18.64964886,166.02,165.97,6.02507565]
[1747510039966,18.64964886,166.0,165.96,1.6213]
[1747510040698,18.64964886,165.98,165.92,57.44201627]
[1747510040867,18.64964886,165.98,165.92,5.91510796]
[1747510041192,18.64964886,165.96,165.92,5.91510796]
[1747510043207,18.64964886,165.96,165.92,1.6062]
[1747510043502,24.67531153,165.96,165.92,1.6062]
[1747510043990,24.67531153,165.96,165.9,71.5]
[1747510044788,18.64964886,165.96,165.9,77.52756736]
[1747510046384,18.64964886,165.96,165.9,32.02756736]
[1747510056903,18.64964886,165.97,165.9,32.02756736]
[1747510058311,18.64964886,165.97,165.9,77.52756736]
[1747510061690,24.67484525,165.97,165.9,77.52756736]
[1747510063639,1.19931185,166.0,165.9,92.59688622]
[1747510063917,18.64964886,166.0,165.93,27.5538]
[1747510064301,18.64964886,166.0,165.93,73.0538]
[1747510064807,18.64964886,166.0,165.94,6.02627455]
[1747510066721,24.67376357,166.0,165.94,6.02627455]
[1747510068627,1.19931185,165.99,165.93,79.08032111]
[1747510069529,7.22403544,165.99,165.93,79.08032111]
[1747510069828,7.22403544,165.99,165.93,45.5]
[1747510070408,6.02418801,166.0,165.93,45.5]
[1747510071924,6.02418801,166.0,165.93,51.52654015]
[1747510073334,6.02418801,166.0,165.93,6.02654015]
[1747510079039,18.64964886,166.01,165.93,51.52654015]
[1747510079843,24.67339985,166.01,165.93,51.52654015]
[1747510080443,18.64964886,166.01,165.93,51.52654015]
[1747510080752,18.64964886,166.02,165.96,26.0]
[1747510080940,18.64964886,166.02,165.96,71.5]
[1747510082625,18.64964886,166.02,165.97,6.02518527]
[1747510083930,18.64964886,166.03,165.97,6.02518527]
[1747510086658,24.67272802,166.03,165.97,6.02518527]
[1747510089345,1.19931185,166.02,165.96,45.5]
[1747510090648,18.64964886,166.01,165.92,4.30890796]
[1747510090850,18.64964886,165.99,165.92,4.30890796]
[1747510091156,18.64964886,165.95,165.92,4.30890796]
[1747510091350,18.64964886,165.93,165.92,4.30890796]
[1747510091648,18.64964886,165.93,165.87,54.13543353]
[1747510091649,18.64964886,165.93,165.88,4.30890796]
[1747510092527,19.84896071,165.95,165.88,4.30890796]
[1747510093346,19.84896071,165.95,165.88,10.33729602]
[1747510093347,18.64964886,165.93,165.88,10.33729602]
[1747510094134,7.22531617,165.95,165.88,10.33729602]
[1747510094950,7.22531617,165.95,165.88,6.02838806]
[1747510098460,1.19931185,165.96,165.88,6.02838806]
[1747510098635,18.64964886,165.97,165.88,6.02838806]
[1747510098834,18.64964886,165.97,165.88,66.59952382]
[1747510099150,24.67487163,165.97,165.91,26.0]
[1747510100062,24.67487163,165.97,165.91,32.02723972]
[1747510100553,18.64964886,165.95,165.88,45.5]
[1747510100733,18.64964886,165.95,165.88,71.5]
[1747510101951,24.67581858,165.95,165.89,6.02808991]
[1747510104746,24.67581858,165.95,165.88,77.52831439]
[1747510105059,24.67581858,165.95,165.88,26.0]
[1747510105357,18.64964886,165.93,165.88,26.0]
[1747510106260,24.67663828,165.93,165.88,26.0]
[1747510106463,24.67663828,165.93,165.86,79.12018145]
[1747510117876,24.67663828,165.93,165.86,33.62018145]
[1747510118654,25.87595013,165.93,165.86,33.62018145]
[1747510124567,25.87595013,165.93,165.86,27.5913]
[1747510125767,25.87595013,165.93,165.86,33.62046671]
[1747510127457,25.87595013,165.93,165.86,27.5913]
[1747510129785,25.87595013,165.93,165.86,33.62042473]
[1747510132916,24.67663828,165.93,165.86,33.62042473]
[1747510134148,24.67663828,165.93,165.86,27.5913]
[1747510134439,18.64964886,165.91,165.86,27.5913]
[1747510136047,18.64964886,165.89,165.83,6.03012678]
[1747510137245,24.67805367,165.89,165.83,6.03012678]
[1747510139534,24.67805367,165.89,165.82,7.53902089]
[1747510143337,24.67805367,165.89,165.82,1.5085]
[1747510143635,18.64964886,165.87,165.82,1.5085]
[1747510143841,18.64964886,165.87,165.78,4.31573258]
[1747510143842,18.64964886,165.85,165.78,5.88613258]
[1747510144141,18.64964886,165.85,165.78,31.88613258]
[1747510144324,19.84896071,165.88,165.78,31.88613258]
[1747510144926,6.02881774,165.87,165.79,6.03164359]
[1747510145113,18.64964886,165.85,165.79,6.03164359]
[1747510145948,18.64964886,165.83,165.79,6.03164359]
[1747510151120,18.64964886,165.83,165.78,1.5704]
[1747510151121,6.03036532,165.83,165.78,1.5704]
[1747510151530,6.03036532,165.83,165.76,32.03269976]
[1747510154048,24.67970048,165.84,165.76,32.03269976]
[1747510154646,18.64964886,165.84,165.76,47.11474609]
[1747510154943,18.64964886,165.84,165.76,48.32096909]
[1747510155317,24.67968375,165.84,165.76,48.32096909]
[1747510156440,24.67968375,165.84,165.76,47.11474609]
[1747510158547,24.67968375,165.84,165.76,32.03269976]
[1747510165556,18.64964886,165.84,165.76,47.11474609]
[1747510166255,24.67963885,165.84,165.76,47.11474609]
[1747510170660,18.64964886,165.84,165.76,47.11474609]
[1747510171863,24.67956756,165.84,165.76,47.11474609]
[1747510174567,24.67956756,165.84,165.76,32.03269976]
[1747510176964,18.64964886,165.82,165.76,32.03269976]
[1747510182568,24.68029213,165.82,165.76,32.03269976]
[1747510186878,18.64964886,165.82,165.76,32.03269976]
[1747510191080,6.03063723,165.82,165.76,32.03269976]
[1747510191977,19.84896071,165.81,165.74,5.88613258]
[1747510192183,19.84896071,165.81,165.74,4.31573258]
[1747510193378,18.64964886,165.79,165.74,4.31573258]
[1747510193561,19.84896071,165.79,165.74,4.31573258]
[1747510194483,6.03209072,165.78,165.74,4.31573258]
[1747510194791,18.64964886,165.77,165.74,4.31573258]
[1747510194978,18.64964886,165.77,165.72,6.03423664]
[1747510195784,18.64964886,165.77,165.72,32.03423664]
[1747510198977,6.03253944,165.77,165.72,32.03423664]
[1747510199478,6.03253944,165.77,165.71,6.03453729]
[1747510202487,18.64964886,165.75,165.7,1.572]
[1747510202688,18.64964886,165.75,165.68,6.03562337]
[1747510202888,18.64964886,165.73,165.67,6.03595781]
[1747510203087,19.84896071,165.76,165.67,6.03595781]
[1747510204095,6.0331825,165.75,165.67,6.03595781]
[1747510204994,18.64964886,165.73,165.67,6.03595781]
[1747510205397,18.64964886,165.71,165.66,7.68327252]
[1747510206975,18.64964886,165.71,165.66,6.03637252]
[1747510207769,18.64964886,165.72,165.66,6.03637252]
[1747510212475,18.64964886,165.72,165.66,21.12752306]
[1747510212681,18.64964886,165.73,165.66,21.12752306]
[1747510214288,18.64964886,165.73,165.66,66.62752306]
[1747510214490,1.19931185,165.72,165.66,51.53637252]
[1747510217000,18.64964886,165.7,165.64,1.5019]
[1747510217183,18.64964886,165.68,165.63,6.0374903]
[1747510218000,24.68566574,165.68,165.62,51.53778408]
[1747510218185,18.64964886,165.66,165.61,6.03814614]
[1747510219308,18.64964886,165.66,165.6,7.56711297]
[1747510220213,24.68627485,165.66,165.6,7.56711297]
[1747510221797,24.68627485,165.66,165.54,15.10148797]
[1747510221798,18.64964886,165.64,165.54,15.10148797]
[1747510221982,18.64964886,165.62,165.55,6.04047115]
[1747510222177,1.19931185,165.61,165.53,6.04110199]
[1747510222383,18.64964886,165.6,165.53,6.04110199]
[1747510222583,18.64964886,165.6,165.53,32.04110199]
[1747510222785,18.64964886,165.6,165.53,6.04110199]
[1747510223098,37.8,165.62,165.52,33.61803864]
[1747510223099,18.64964886,165.58,165.52,33.61803864]
[1747510223302,18.64964886,165.56,165.51,4.31573258]
[1747510223704,18.64964886,165.6,165.51,4.31573258]
[1747510223907,24.68902559,165.58,165.51,10.35756231]
[1747510224114,18.64964886,165.58,165.51,10.35756231]
[1747510225215,18.64964886,165.58,165.51,6.04182973]
[1747510226315,24.68909752,165.58,165.51,6.04182973]
[1747510227214,24.68909752,165.58,165.5,6.04229607]
[1747510229286,24.68909752,165.58,165.5,51.54229607]
[1747510231415,1.19931185,165.57,165.5,51.54229607]
[1747510231600,18.64964886,165.56,165.5,51.54229607]
[1747510231911,18.64964886,165.54,165.49,32.04255826]
[1747510232093,18.64964886,165.54,165.49,6.04255826]
[1747510232890,18.64964886,165.54,165.47,79.11974499]
[1747510233816,24.69052241,165.54,165.47,79.11974499]
[1747510235403,24.69052241,165.54,165.47,33.61974499]
[1747510235718,18.64964886,165.54,165.47,33.61974499]
[1747510236919,24.69050506,165.54,165.47,33.61974499]
[1747510237338,18.92,165.56,165.47,48.72822386]
[1747510237619,37.56964886,165.57,165.47,48.72822386]
[1747510237910,37.56964886,165.57,165.5,26.0]
[1747510239706,37.56964886,165.57,165.51,6.041931]
[1747510243256,18.64964886,165.57,165.51,21.1467585]
[1747510243534,19.84896071,165.59,165.51,21.1467585]
[1747510244225,25.88810855,165.59,165.51,21.1467585]
[1747510247001,25.88810855,165.59,165.51,6.041931]
[1747510247203,25.88810855,165.59,165.5,51.54227467]
[1747510247519,25.88810855,165.59,165.5,6.04227467]
[1747510248306,25.88810855,165.59,165.49,6.04266118]
[1747510249827,19.84896071,165.59,165.5,26.0]
[1747510250010,18.64964886,165.61,165.53,1.5137]
[1747510250217,18.64964886,165.61,165.53,47.0137]
[1747510251028,24.68804624,165.61,165.54,6.04083605]
[1747510258825,18.64964886,165.59,165.53,53.054791]
[1747510259347,18.64964886,165.59,165.52,26.0]
[1747510259348,18.64964886,165.57,165.5,45.5]
[1747510259818,21.13410416,165.61,165.49,1.5137]
[1747510259819,18.64964886,165.55,165.49,1.5137]
[1747510260745,18.64964886,165.55,165.5,6.04215279]
[1747510263043,24.69017453,165.55,165.5,6.04215279]
[1747510263252,6.04052567,165.55,165.5,6.04215279]
[1747510263549,6.04052567,165.55,165.49,7.55622684]
[1747510263725,18.64964886,165.54,165.49,7.55622684]
[1747510264922,18.64964886,165.54,165.46,45.5]
[1747510265129,18.64964886,165.52,165.45,47.075]
[1747510265345,18.64964886,165.52,165.45,7.61910856]
[1747510265549,18.64964886,165.5,165.45,7.61910856]
[1747510265729,18.64964886,165.48,165.44,4.31573258]
[1747510266636,18.64964886,165.46,165.44,4.31573258]
[1747510266845,24.69365275,165.46,165.44,4.31573258]
[1747510267055,18.64964886,165.46,165.44,4.31573258]
[1747510267224,1.19931185,165.45,165.44,4.31573258]
[1747510267428,19.84896071,165.45,165.44,4.31573258]
[1747510268024,18.64964886,165.45,165.44,4.31573258]
[1747510268644,6.0438311,165.46,165.37,1.575]
[1747510268838,18.64964886,165.45,165.38,6.04668037]
[1747510269042,1.19931185,165.44,165.38,6.04668037]
[1747510269229,1.19931185,165.44,165.37,53.12194142]
[1747510269957,19.84896071,165.45,165.37,53.12194142]
[1747510270454,18.64964886,165.45,165.37,68.23955646]
[1747510270660,18.64964886,165.46,165.37,69.44850701]
[1747510271854,18.64964886,165.46,165.37,68.23955646]
[1747510273632,18.64964886,165.48,165.4,26.0]
[1747510273942,6.04256214,165.5,165.4,26.0]
[1747510273943,18.64964886,165.5,165.4,71.5]
[1747510274340,18.64964886,165.5,165.4,90.42]
[1747510274959,18.64964886,165.5,165.41,6.0455837]
[1747510275346,18.64964886,165.5,165.41,21.15954295]
[1747510275548,24.6919518,165.5,165.41,21.15954295]
[1747510277060,18.64964886,165.48,165.41,6.0455837]
[1747510277554,18.64964886,165.46,165.4,32.04584994]
[1747510278337,24.69356652,165.46,165.4,32.04584994]
[1747510284567,24.69356652,165.46,165.39,6.04631477]
[1747510286056,18.64964886,165.44,165.38,6.04654683]
[1747510286251,18.64964886,165.44,165.37,7.62196039]
[1747510286576,18.64964886,165.42,165.37,7.6219767]
[1747510287570,19.84896071,165.44,165.37,7.6219767]
[1747510287955,18.64964886,165.42,165.37,7.6219767]
[1747510289761,6.04532586,165.42,165.37,7.6219767]
[1747510290368,18.64964886,165.42,165.37,7.6219767]
[1747510293981,6.04532566,165.42,165.37,1.575]
[1747510294479,7.24463751,165.42,165.33,1.5116]
[1747510294672,7.24463751,165.42,165.32,45.5]
[1747510294870,18.64964886,165.38,165.32,45.5]
[1747510295178,18.64964886,165.37,165.31,6.0491329]
[1747510296279,6.0474117,165.36,165.3,6.04960677]
[1747510296656,18.64964886,165.38,165.3,6.04960677]
[1747510297090,18.64964886,165.38,165.31,26.0]
[1747510297788,18.64964886,165.38,165.33,26.0]
[1747510298009,18.64964886,165.38,165.33,71.5]
[1747510298485,18.64964886,165.38,165.34,6.04814322]
[1747510301293,18.64964886,165.39,165.34,6.04814322]
[1747510309103,25.89537055,165.39,165.33,45.5]
[1747510313551,25.89537055,165.39,165.31,6.04919661]
[1747510313732,25.89537055,165.39,165.3,6.04960677]
[1747510314813,41.01115747,165.39,165.3,6.04960677]
[1747510315767,41.01115747,165.39,165.29,1.5116]
[1747510316257,41.01115747,165.39,165.29,7.56156209]
[1747510316560,41.01115747,165.39,165.29,1.5116]
[1747510317353,41.01115747,165.39,165.28,6.05033881]
[1747510319565,39.81430991,165.37,165.28,6.05033881]
[1747510319743,18.64964886,165.35,165.28,6.05033881]
[1747510321066,18.64964886,165.33,165.28,6.05033881]
[1747510324044,6.04855501,165.33,165.28,6.05033881]
[1747510324564,18.64964886,165.35,165.28,6.05033881]
[1747510325566,24.6974263,165.35,165.26,6.05107103]
[1747510328370,24.6974263,165.35,165.26,51.55107103]
[1747510329368,18.64964886,165.31,165.24,1.20986537]
[1747510329541,18.64964886,165.31,165.18,23.76979705]
[1747510329542,18.64964886,165.29,165.18,23.76979705]
[1747510329751,18.64964886,165.27,165.19,6.0536352]
[1747510331279,18.64964886,165.27,165.17,32.05436822]
[1747510331576,20.11931185,165.28,165.17,5.05436822]
[1747510331577,18.64964886,165.25,165.17,5.05436822]
[1747510331942,18.64964886,165.25,165.16,7.6900174]
[1747510332146,18.64964886,165.23,165.16,7.6900174]
[1747510332939,24.70203772,165.23,165.16,7.6900174]
[1747510333774,18.64964886,165.23,165.16,7.6900174]
[1747510335668,18.64964886,165.23,165.15,15.13754029]
[1747510335669,18.64964886,165.23,165.15,21.19264171]
[1747510335872,18.64964886,165.23,165.15,6.05510142]
[1747510335873,18.64964886,165.21,165.15,6.05510142]
[1747510337261,6.05321019,165.21,165.14,6.05546808]
[1747510339979,18.64964886,165.21,165.14,6.05546808]
[1747510340474,18.64964886,165.21,165.14,51.55546808]
[1747510341578,18.64964886,165.22,165.15,6.529]
[1747510343473,18.64964886,165.22,165.16,6.0547348]
[1747510347259,6.05259916,165.22,165.16,6.0547348]
[1747510349366,6.05259916,165.22,165.15,6.05510015]
[1747510351081,6.05259916,165.22,165.14,6.05546808]
[1747510353183,6.05259916,165.22,165.13,45.5]
[1747510353184,18.64964886,165.19,165.13,51.55569509]
[1747510353389,18.64964886,165.19,165.13,6.05569509]
[1747510355171,18.64964886,165.19,165.12,6.05620155]
[1747510356426,18.64964886,165.23,165.13,1.21090866]
[1747510356573,37.58964886,165.23,165.13,46.71090866]
[1747510357798,37.58964886,165.23,165.14,6.05546808]
[1747510358797,43.64202368,165.23,165.14,6.05546808]
[1747510359921,37.58964886,165.23,165.14,77.47147872]
[1747510360072,18.64964886,165.23,165.15,2.87674055]
[1747510361896,18.64964886,165.23,165.16,21.1915718]
[1747510364416,18.64964886,165.23,165.16,66.6915718]
[1747510365506,8.2682,165.29,165.19,26.0]
[1747510365711,18.64964886,165.28,165.19,72.71028403]
[1747510366088,18.64964886,165.29,165.19,72.71028403]
[1747510367236,24.69971478,165.29,165.2,6.05326876]
[1747510368025,1.19931185,165.28,165.2,6.05326876]
[1747510368925,18.64964886,165.26,165.2,6.05326876]
[1747510369932,18.64964886,165.27,165.2,6.05326876]
[1747510370924,6.05094529,165.27,165.2,6.05326876]
[1747510380033,18.64964886,165.26,165.2,6.05326876]
[1747510381731,18.64964886,165.27,165.21,1.5048]
[1747510382525,18.64964886,165.28,165.21,47.0048]
[1747510383334,24.70003471,165.28,165.21,47.0048]
[1747510384631,24.70003471,165.28,165.22,6.05253601]
[1747510386235,18.64964886,165.28,165.22,6.05253601]
[1747510386936,18.64964886,165.3,165.22,21.18387604]
[1747510387115,18.64964886,165.3,165.23,1.21005413]
[1747510387313,18.64964886,165.31,165.24,6.5958]
[1747510388036,18.64964886,165.31,165.25,6.05143721]
[1747510389450,18.64964886,165.31,165.25,21.18003025]
[1747510389652,18.64964886,165.34,165.25,21.18003025]
[1747510389951,18.64964886,165.34,165.25,66.68003025]
[1747510391952,1.19931185,165.36,165.26,1.6397]
[1747510392235,1.19931185,165.36,165.27,21.17746716]
[1747510392236,18.64964886,165.36,165.27,21.17746716]
[1747510393451,18.64964886,165.36,165.28,27.20969738]
[1747510394322,25.89640954,165.36,165.27,40.11746716]
[1747510394522,24.69709769,165.36,165.27,40.11746716]
[1747510394943,18.64964886,165.36,165.27,40.11746716]
[1747510395131,18.64964886,165.36,165.3,26.0]
[1747510395318,18.64964886,165.36,165.31,6.04924082]
[1747510395517,18.64964886,165.36,165.31,21.17234287]
[1747510395720,18.64964886,165.39,165.31,21.17234287]
[1747510396844,18.64964886,165.4,165.32,1.5621]
[1747510397146,1.19931185,165.39,165.32,1.5621]
[1747510397452,18.64964886,165.37,165.32,7.61070253]
[1747510397840,18.64964886,165.35,165.29,1.5621]
[1747510398050,18.64964886,165.37,165.29,6.04992717]
[1747510398051,18.64964886,165.33,165.29,6.04992717]
[1747510398830,18.64964886,165.35,165.29,6.04992717]
[1747510399030,24.69765875,165.35,165.27,6.0507049]
[1747510402751,24.69765875,165.35,165.26,6.05107103]
[1747510402927,24.69765875,165.35,165.26,32.05107103]
[1747510404656,24.69765875,165.35,165.26,47.17874862]
[1747510405434,18.64964886,165.33,165.26,6.05107103]
[1747510406461,18.64964886,165.34,165.26,6.05107103]
[1747510406864,18.64964886,165.34,165.26,21.17874862]
[1747510409363,19.84896071,165.33,165.26,6.05107103]
[1747510410856,18.64964886,165.35,165.26,21.17874862]
[1747510411038,38.78896071,165.35,165.26,21.17874862]
[1747510411239,25.89680638,165.35,165.26,21.17874862]
[1747510411467,44.85680638,165.35,165.26,21.17874862]
[1747510412368,44.85680638,165.35,165.26,66.67874862]
[1747510412767,25.89680638,165.35,165.26,66.67874862]
[1747510427565,19.84896071,165.35,165.26,66.67874862]
[1747510427778,18.64964886,165.35,165.26,72.76534862]
[1747510432280,18.64964886,165.36,165.27,26.0]
[1747510432584,18.64964886,165.36,165.29,26.0]
[1747510433785,18.64964886,165.37,165.3,6.04960677]
[1747510435255,6.04721117,165.37,165.3,6.04960677]
[1747510436385,6.04721117,165.37,165.3,51.54960677]
[1747510439187,24.69644365,165.38,165.3,51.54960677]
[1747510439488,37.56964886,165.42,165.32,6.4923]
[1747510439657,38.76896071,165.42,165.32,51.9923]
[1747510439862,43.61498478,165.42,165.32,51.9923]
[1747510440372,37.56964886,165.42,165.33,1.20927607]
[1747510440579,18.64964886,165.42,165.33,46.70927607]
[1747510441263,18.64964886,165.42,165.34,6.04814322]
[1747510441476,4.27537859,165.43,165.35,2.8560227]
[1747510441881,18.64964886,165.42,165.35,2.8560227]
[1747510442390,44.64964886,165.45,165.35,2.8560227]
[1747510442587,44.64964886,165.45,165.36,6.0474117]
[1747510442773,44.64964886,165.45,165.36,51.5474117]
[1747510443296,50.69382065,165.45,165.36,51.5474117]
[1747510444391,18.64964886,165.45,165.37,1.20896344]
[1747510444695,18.64964886,165.47,165.39,6.04631477]
[1747510444899,18.64964886,165.47,165.39,7.25507737]
[1747510445600,18.64964886,165.47,165.39,22.37086429]
[1747510445796,18.64964886,165.47,165.39,7.25507737]
[1747510445977,18.64964886,165.47,165.39,6.04631477]
[1747510446694,18.64964886,165.45,165.39,6.04631477]
[1747510448193,18.64964886,165.47,165.39,6.04631477]
[1747510448498,5.54341141,165.47,165.39,51.54631477]
[1747510454385,24.69280776,165.48,165.39,51.54631477]
[1747510454574,24.69280776,165.48,165.4,1.655]
[1747510454780,24.69280776,165.48,165.4,47.155]
[1747510455797,24.69280776,165.48,165.41,6.0455837]
[1747510458602,18.64964886,165.48,165.41,6.0455837]
[1747510458801,18.64964886,165.48,165.41,22.36831637]
[1747510458988,18.64964886,165.48,165.41,48.36831637]
[1747510459504,18.64964886,165.48,165.41,33.25435712]
[1747510460402,18.64964886,165.48,165.41,78.75435712]
[1747510460815,24.69288164,165.48,165.41,78.75435712]
[1747510462506,24.69288164,165.48,165.41,51.5455837]
[1747510465802,18.64964886,165.46,165.41,45.5]
[1747510465975,18.64964886,165.44,165.37,45.5]
[1747510466180,18.64964886,165.42,165.37,45.5]
[1747510466600,18.64964886,165.4,165.33,51.8642]
[1747510466802,18.64964886,165.4,165.34,26.0]
[1747510466991,18.64964886,165.43,165.34,26.0]
[1747510467291,1.19931185,165.42,165.34,26.0]
[1747510467797,24.69523256,165.41,165.34,32.0480707]
[1747510468388,18.64964886,165.41,165.34,78.75733295]
[1747510468594,18.64964886,165.41,165.34,93.877691]
[1747510469106,6.0449574,165.43,165.34,93.877691]
[1747510477913,18.64964886,165.42,165.34,93.877691]
[1747510478317,6.04533802,165.42,165.34,93.877691]
[1747510479314,7.24464987,165.42,165.34,77.5480707]
[1747510486326,18.64964886,165.42,165.34,77.5480707]
[1747510487430,18.64964886,165.42,165.34,92.66842875]
[1747510493534,6.04534783,165.42,165.34,92.66842875]
[1747510493740,6.04534783,165.42,165.34,77.5480707]
[1747510493918,7.24465968,165.42,165.34,77.5480707]
[1747510496741,18.64964886,165.41,165.34,77.5480707]
[1747510501045,18.64964886,165.41,165.34,92.66842875]
[1747510503446,7.24505215,165.41,165.34,71.5]
[1747510503639,7.24505215,165.41,165.34,45.5]
[1747510503947,7.24505215,165.41,165.33,51.54841739]
[1747510504949,18.64964886,165.38,165.33,51.54841739]
[1747510505649,18.64964886,165.38,165.33,45.5]
[1747510507046,24.69667751,165.38,165.33,45.5]
[1747510508336,24.69667751,165.38,165.32,1.5878]
[1747510510744,18.64964886,165.38,165.32,7.63666557]
[1747510511140,18.64964886,165.41,165.33,1.20927879]
[1747510511452,18.64964886,165.41,165.34,6.6363]
[1747510511830,18.64964886,165.43,165.34,6.6363]
[1747510512153,24.69413628,165.44,165.34,6.6363]
[1747510512349,24.69413628,165.44,165.34,52.1363]
[1747510513253,24.69413628,165.44,165.35,6.04777744]
[1747510514637,24.69413628,165.44,165.36,1.6354]
[1747510514840,18.64964886,165.44,165.36,1.6354]
[1747510516060,24.69430781,165.44,165.36,1.6354]
[1747510516358,25.89361966,165.44,165.36,1.6354]
[1747510517053,25.89361966,165.44,165.36,7.68258389]
[1747510520345,25.89361966,165.44,165.36,53.18258389]
[1747510522561,41.00483822,165.44,165.36,47.1354]
[1747510522970,41.00483822,165.44,165.34,6.6363]
[1747510523147,41.00483822,165.44,165.33,45.5]